[Event "Titled Tuesday Blitz December 13 Late 2022"]
[White "Goryachkina, Aleksandra"]
[Black "Van Dael, Siem"]
[WhiteFideId "4147103"]
[BlackFideId "1049771"]
[WhiteElo "2484"]
[BlackElo "2336"]
[Result "1-0"]
[Round "06"]
[TimeControl "180+1"]
[Date "2022.12.13"]
[WhiteClock "0:00:03"]
[BlackClock "0:00:03"]

1. e4 {[%clk 0:02:59]}  d5 {[%clk 0:02:59]} 2. exd5 {[%clk 0:02:59]}  Nf6 {[%clk 0:03:00]} 3. c4 {[%clk 0:02:56]}  c6 {[%clk 0:03:00]} 4. d4 {[%clk 0:02:54]}  cxd5 {[%clk 0:03:00]} 5. Nc3 {[%clk 0:02:53]}  g6 {[%clk 0:03:00]} 6. Nf3 {[%clk 0:02:53]}  Bg7 {[%clk 0:03:00]} 7. cxd5 {[%clk 0:02:48]}  Nxd5 {[%clk 0:03:01]} 8. Bc4 {[%clk 0:02:48]}  Nb6 {[%clk 0:03:02]} 9. Bb3 {[%clk 0:02:48]}  O-O {[%clk 0:03:02]} 10. O-O {[%clk 0:02:48]}  Nc6 {[%clk 0:03:00]} 11. d5 {[%clk 0:02:37]}  Na5 {[%clk 0:02:52]} 12. Re1 {[%clk 0:02:31]}  Nxb3 {[%clk 0:02:26]} 13. axb3 {[%clk 0:02:29]}  Nd7 {[%clk 0:01:39]} 14. Bf4 {[%clk 0:02:18]}  Nf6 {[%clk 0:01:39]} 15. h3 {[%clk 0:02:17]}  Bf5 {[%clk 0:01:12]} 16. Qd2 {[%clk 0:02:16]}  a6 {[%clk 0:01:11]} 17. Rad1 {[%clk 0:02:10]}  Re8 {[%clk 0:01:06]} 18. Ne5 {[%clk 0:01:41]}  Qb6 {[%clk 0:01:03]} 19. g4 {[%clk 0:01:29]}  Bc8 {[%clk 0:01:00]} 20. Qc2 {[%clk 0:01:19]}  Qb4 {[%clk 0:00:48]} 21. Bg3 {[%clk 0:01:16]}  Nd7 {[%clk 0:00:34]} 22. Nc4 {[%clk 0:01:07]}  Nf6 {[%clk 0:00:10]} 23. d6 {[%clk 0:01:00]}  Be6 {[%clk 0:00:10]} 24. dxe7 {[%clk 0:00:54]}  Bxc4 {[%clk 0:00:11]} 25. bxc4 {[%clk 0:00:52]}  Rxe7 {[%clk 0:00:11]} 26. Rxe7 {[%clk 0:00:46]}  Qxe7 {[%clk 0:00:11]} 27. Nd5 {[%clk 0:00:41]}  Nxd5 {[%clk 0:00:08]} 28. cxd5 {[%clk 0:00:41]}  Re8 {[%clk 0:00:07]} 29. d6 {[%clk 0:00:38]}  Qd7 {[%clk 0:00:07]} 30. Qc7 {[%clk 0:00:38]}  Rd8 {[%clk 0:00:03]} 31. Qxd7 {[%clk 0:00:22]}  Rxd7 {[%clk 0:00:03]} 32. Rc1 {[%clk 0:00:23]}  Bf8 {[%clk 0:00:02]} 33. Rc7 {[%clk 0:00:22]}  Rd8 {[%clk 0:00:01]} 34. d7 {[%clk 0:00:22]}  Be7 {[%clk 0:00:01]} 35. Rxb7 {[%clk 0:00:19]}  f6 {[%clk 0:00:01]} 36. f3 {[%clk 0:00:14]}  Kf7 {[%clk 0:00:01]} 37. Bf2 {[%clk 0:00:04]}  Ke6 {[%clk 0:00:01]} 38. Rb6+ {[%clk 0:00:04]}  Kxd7 {[%clk 0:00:02]} 39. Rxa6 {[%clk 0:00:04]}  Rb8 {[%clk 0:00:02]} 40. Ra7+ {[%clk 0:00:05]}  Ke6 {[%clk 0:00:02]} 41. Bd4 {[%clk 0:00:04]}  Rb4 {[%clk 0:00:01]} 42. Ra6+ {[%clk 0:00:04]}  Kf7 {[%clk 0:00:01]} 43. Bc3 {[%clk 0:00:05]}  Rb7 {[%clk 0:00:01]} 44. Kf2 {[%clk 0:00:05]}  Bc5+ {[%clk 0:00:01]} 45. Ke2 {[%clk 0:00:05]}  Be7 {[%clk 0:00:01]} 46. Kd3 {[%clk 0:00:05]}  f5 {[%clk 0:00:01]} 47. Kc4 {[%clk 0:00:05]}  Rc7+ {[%clk 0:00:01]} 48. Kd5 {[%clk 0:00:06]}  Rd7+ {[%clk 0:00:02]} 49. Kc4 {[%clk 0:00:06]}  Rd1 {[%clk 0:00:02]} 50. Ra7 {[%clk 0:00:05]}  Ke6 {[%clk 0:00:03]} 51. b4 {[%clk 0:00:05]}  Rf1 {[%clk 0:00:03]} 52. b5 {[%clk 0:00:04]}  Rxf3 {[%clk 0:00:03]} 53. b6 {[%clk 0:00:04]}  Rf4+ {[%clk 0:00:03]} 54. Kb5 {[%clk 0:00:04]}  Rf1 {[%clk 0:00:03]} 55. Rxe7+ {[%clk 0:00:03]}  Kxe7 {[%clk 0:00:03]} 56. b7 {[%clk 0:00:03]} 1-0


[Site "https://www.chess.com"]

[Event "Titled Tuesday Blitz December 13 Late 2022"]
[White "Kanakaris, Georgios"]
[Black "Jacobson, Brandon"]
[WhiteFideId "4209460"]
[BlackFideId "30901561"]
[WhiteElo "2291"]
[BlackElo "2451"]
[Result "0-1"]
[Round "06"]
[TimeControl "180+1"]
[Date "2022.12.13"]
[WhiteClock "0:00:02"]
[BlackClock "0:00:17"]

1. d4 {[%clk 0:02:59]}  Nf6 {[%clk 0:03:00]} 2. Nf3 {[%clk 0:02:59]}  g6 {[%clk 0:03:00]} 3. g3 {[%clk 0:03:00]}  Bg7 {[%clk 0:03:01]} 4. Bg2 {[%clk 0:03:00]}  O-O {[%clk 0:03:01]} 5. O-O {[%clk 0:03:01]}  d6 {[%clk 0:03:02]} 6. b3 {[%clk 0:03:02]}  b5 {[%clk 0:03:02]} 7. Bb2 {[%clk 0:03:01]}  Bb7 {[%clk 0:03:02]} 8. Nbd2 {[%clk 0:03:00]}  Nbd7 {[%clk 0:03:01]} 9. a4 {[%clk 0:03:00]}  b4 {[%clk 0:02:58]} 10. a5 {[%clk 0:03:01]}  c5 {[%clk 0:02:49]} 11. dxc5 {[%clk 0:02:49]}  Nxc5 {[%clk 0:02:48]} 12. Nc4 {[%clk 0:02:45]}  Rc8 {[%clk 0:02:44]} 13. Qe1 {[%clk 0:02:42]}  Nd5 {[%clk 0:02:31]} 14. Bxg7 {[%clk 0:02:38]}  Kxg7 {[%clk 0:02:32]} 15. Nd4 {[%clk 0:02:26]}  Nc3 {[%clk 0:02:31]} 16. Bxb7 {[%clk 0:02:14]}  Nxb7 {[%clk 0:02:32]} 17. a6 {[%clk 0:01:49]}  Nc5 {[%clk 0:02:32]} 18. Na5 {[%clk 0:01:47]}  e5 {[%clk 0:02:18]} 19. Nf3 {[%clk 0:01:33]}  Nxa6 {[%clk 0:02:18]} 20. Qd2 {[%clk 0:01:22]}  Nc5 {[%clk 0:02:15]} 21. Nc4 {[%clk 0:01:08]}  N5e4 {[%clk 0:02:12]} 22. Qe3 {[%clk 0:01:02]}  Rc7 {[%clk 0:01:57]} 23. Nfd2 {[%clk 0:00:50]}  d5 {[%clk 0:01:51]} 24. Nxe4 {[%clk 0:00:47]}  dxe4 {[%clk 0:01:36]} 25. Nxe5 {[%clk 0:00:43]}  Qd4 {[%clk 0:01:36]} 26. Nc4 {[%clk 0:00:28]}  Qxe3 {[%clk 0:01:35]} 27. Nxe3 {[%clk 0:00:29]}  Nxe2+ {[%clk 0:01:36]} 28. Kg2 {[%clk 0:00:30]}  Nd4 {[%clk 0:01:34]} 29. Rfd1 {[%clk 0:00:28]}  Nxc2 {[%clk 0:01:30]} 30. Nd5 {[%clk 0:00:11]}  Nxa1 {[%clk 0:01:27]} 31. Nxc7 {[%clk 0:00:12]}  Nxb3 {[%clk 0:01:28]} 32. Rb1 {[%clk 0:00:12]}  Nc5 {[%clk 0:01:23]} 33. Rxb4 {[%clk 0:00:12]}  Rc8 {[%clk 0:01:24]} 34. Nd5 {[%clk 0:00:11]}  a5 {[%clk 0:01:24]} 35. Rb5 {[%clk 0:00:10]}  a4 {[%clk 0:01:24]} 36. Ra5 {[%clk 0:00:11]}  Nd3 {[%clk 0:00:48]} 37. Rxa4 {[%clk 0:00:10]}  Rc2 {[%clk 0:00:49]} 38. Rxe4 {[%clk 0:00:10]}  Nxf2 {[%clk 0:00:49]} 39. Rd4 {[%clk 0:00:09]}  Ng4+ {[%clk 0:00:48]} 40. Kg1 {[%clk 0:00:09]}  Nxh2 {[%clk 0:00:43]} 41. Rf4 {[%clk 0:00:07]}  g5 {[%clk 0:00:42]} 42. Rf5 {[%clk 0:00:07]}  g4 {[%clk 0:00:37]} 43. Ne3 {[%clk 0:00:05]}  Re2 {[%clk 0:00:37]} 44. Nxg4 {[%clk 0:00:04]}  Nxg4 {[%clk 0:00:35]} 45. Rg5+ {[%clk 0:00:04]}  Kf6 {[%clk 0:00:31]} 46. Rxg4 {[%clk 0:00:05]}  h5 {[%clk 0:00:32]} 47. Rf4+ {[%clk 0:00:05]}  Kg6 {[%clk 0:00:32]} 48. Kf1 {[%clk 0:00:05]}  Ra2 {[%clk 0:00:32]} 49. Kg1 {[%clk 0:00:06]}  f5 {[%clk 0:00:31]} 50. Rb4 {[%clk 0:00:06]}  Kg5 {[%clk 0:00:32]} 51. Rc4 {[%clk 0:00:06]}  Re2 {[%clk 0:00:31]} 52. Rd4 {[%clk 0:00:04]}  Re4 {[%clk 0:00:31]} 53. Rd2 {[%clk 0:00:03]}  Re3 {[%clk 0:00:19]} 54. Kg2 {[%clk 0:00:02]}  Ra3 {[%clk 0:00:17]} 55. Re2 {[%clk 0:00:02]}  h4 {[%clk 0:00:16]} 56. gxh4+ {[%clk 0:00:02]}  Kxh4 {[%clk 0:00:17]} 57. Rf2 {[%clk 0:00:01]}  Kg4 {[%clk 0:00:17]} 58. Rc2 {[%clk 0:00:01]}  f4 {[%clk 0:00:17]} 59. Kf2 {[%clk 0:00:02]}  Rh3 {[%clk 0:00:17]} 0-1


[Site "https://www.chess.com"]

[Event "Titled Tuesday Blitz December 13 Late 2022"]
[White "Karas, Marek"]
[Black "De Souza, Cristiano Gomes"]
[WhiteFideId "14928558"]
[BlackFideId "2151758"]
[WhiteElo "2247"]
[BlackElo "2068"]
[Result "1-0"]
[Round "06"]
[TimeControl "180+1"]
[Date "2022.12.14"]
[WhiteClock "0:00:38"]
[BlackClock "0:00:10"]

1. g3 {[%clk 0:02:59]}  Nf6 {[%clk 0:02:58]} 2. Bg2 {[%clk 0:02:59]}  g6 {[%clk 0:02:59]} 3. Nf3 {[%clk 0:03:00]}  Bg7 {[%clk 0:02:59]} 4. c4 {[%clk 0:03:01]}  O-O {[%clk 0:02:59]} 5. Nc3 {[%clk 0:03:01]}  d5 {[%clk 0:02:58]} 6. cxd5 {[%clk 0:03:01]}  Nxd5 {[%clk 0:02:59]} 7. Qa4 {[%clk 0:02:54]}  Nxc3 {[%clk 0:02:58]} 8. dxc3 {[%clk 0:02:54]}  Bd7 {[%clk 0:02:56]} 9. Qh4 {[%clk 0:02:54]}  Bc6 {[%clk 0:02:54]} 10. Bh6 {[%clk 0:02:52]}  e5 {[%clk 0:02:45]} 11. Ng5 {[%clk 0:02:49]}  Bxg2 {[%clk 0:02:34]} 12. Bxg7 {[%clk 0:02:49]}  Kxg7 {[%clk 0:02:31]} 13. Qxh7+ {[%clk 0:02:48]}  Kf6 {[%clk 0:02:31]} 14. Rd1 {[%clk 0:02:30]}  Qxd1+ {[%clk 0:02:15]} 15. Kxd1 {[%clk 0:02:30]}  Bxh1 {[%clk 0:02:15]} 16. Qh4 {[%clk 0:02:29]}  Kg7 {[%clk 0:02:10]} 17. f3 {[%clk 0:02:16]}  Nc6 {[%clk 0:02:04]} 18. Qh7+ {[%clk 0:02:11]}  Kf6 {[%clk 0:02:03]} 19. Ne4+ {[%clk 0:02:09]}  Ke7 {[%clk 0:02:00]} 20. Qh4+ {[%clk 0:02:08]}  f6 {[%clk 0:01:50]} 21. Qh6 {[%clk 0:01:56]}  Rad8+ {[%clk 0:01:46]} 22. Ke1 {[%clk 0:01:56]}  Rf7 {[%clk 0:01:40]} 23. Qxg6 {[%clk 0:01:43]}  Rh8 {[%clk 0:01:33]} 24. h4 {[%clk 0:01:34]}  Rhh7 {[%clk 0:01:22]} 25. Nxf6 {[%clk 0:01:29]}  Rhg7 {[%clk 0:01:13]} 26. Nd5+ {[%clk 0:01:17]}  Kf8 {[%clk 0:01:09]} 27. Qh6 {[%clk 0:01:14]}  Bg2 {[%clk 0:00:52]} 28. Nf6 {[%clk 0:00:54]}  Bh3 {[%clk 0:00:46]} 29. Nh5 {[%clk 0:00:46]}  Ne7 {[%clk 0:00:33]} 30. Nxg7 {[%clk 0:00:44]}  Rxg7 {[%clk 0:00:32]} 31. g4 {[%clk 0:00:41]}  Ng6 {[%clk 0:00:25]} 32. h5 {[%clk 0:00:36]}  Nf4 {[%clk 0:00:22]} 33. Qf6+ {[%clk 0:00:34]}  Rf7 {[%clk 0:00:22]} 34. Qxe5 {[%clk 0:00:34]}  Nd3+ {[%clk 0:00:10]} 35. exd3 {[%clk 0:00:33]}  Re7 {[%clk 0:00:11]} 36. Qxe7+ {[%clk 0:00:32]}  Kxe7 {[%clk 0:00:11]} 37. Kf2 {[%clk 0:00:32]}  Kf6 {[%clk 0:00:11]} 38. d4 {[%clk 0:00:30]}  Kg5 {[%clk 0:00:11]} 39. Kg3 {[%clk 0:00:31]}  Bf1 {[%clk 0:00:09]} 40. f4+ {[%clk 0:00:31]}  Kh6 {[%clk 0:00:09]} 41. Kh4 {[%clk 0:00:32]}  Be2 {[%clk 0:00:09]} 42. g5+ {[%clk 0:00:32]}  Kh7 {[%clk 0:00:10]} 43. f5 {[%clk 0:00:31]}  Bd3 {[%clk 0:00:09]} 44. f6 {[%clk 0:00:31]}  b6 {[%clk 0:00:08]} 45. g6+ {[%clk 0:00:31]}  Bxg6 {[%clk 0:00:07]} 46. hxg6+ {[%clk 0:00:32]}  Kxg6 {[%clk 0:00:08]} 47. Kg4 {[%clk 0:00:33]}  Kxf6 {[%clk 0:00:09]} 48. Kf4 {[%clk 0:00:33]}  Ke6 {[%clk 0:00:09]} 49. Ke4 {[%clk 0:00:34]}  c6 {[%clk 0:00:10]} 50. c4 {[%clk 0:00:34]}  Kd6 {[%clk 0:00:10]} 51. d5 {[%clk 0:00:34]}  cxd5+ {[%clk 0:00:10]} 52. cxd5 {[%clk 0:00:35]}  b5 {[%clk 0:00:10]} 53. Kd4 {[%clk 0:00:36]}  a5 {[%clk 0:00:10]} 54. b3 {[%clk 0:00:36]}  b4 {[%clk 0:00:09]} 55. Kc4 {[%clk 0:00:36]}  Ke5 {[%clk 0:00:08]} 56. Kc5 {[%clk 0:00:36]}  Ke4 {[%clk 0:00:08]} 57. d6 {[%clk 0:00:37]}  Kd3 {[%clk 0:00:08]} 58. d7 {[%clk 0:00:37]}  Kc2 {[%clk 0:00:09]} 59. d8=Q {[%clk 0:00:38]}  Kb2 {[%clk 0:00:10]} 60. Qxa5 {[%clk 0:00:38]} 1-0


[Site "https://www.chess.com"]

[Event "Titled Tuesday Blitz December 13 Late 2022"]
[White "Kazakouski, Valery"]
[Black "Bortnyk, Olexandr"]
[WhiteFideId "13507443"]
[BlackFideId "14120828"]
[WhiteElo "2516"]
[BlackElo "2723"]
[Result "0-1"]
[Round "06"]
[TimeControl "180+1"]
[Date "2022.12.13"]
[WhiteClock "0:00:02"]
[BlackClock "0:00:06"]

1. Nf3 {[%clk 0:02:42]}  Nf6 {[%clk 0:02:58]} 2. c4 {[%clk 0:02:41]}  d6 {[%clk 0:02:59]} 3. d4 {[%clk 0:02:41]}  g6 {[%clk 0:02:59]} 4. g3 {[%clk 0:02:42]}  Bg7 {[%clk 0:03:00]} 5. Bg2 {[%clk 0:02:42]}  O-O {[%clk 0:03:01]} 6. O-O {[%clk 0:02:43]}  Bf5 {[%clk 0:03:01]} 7. Qb3 {[%clk 0:02:39]}  Qc8 {[%clk 0:02:49]} 8. Nc3 {[%clk 0:02:39]}  Nc6 {[%clk 0:02:47]} 9. d5 {[%clk 0:02:37]}  Na5 {[%clk 0:02:47]} 10. Qa4 {[%clk 0:02:38]}  b6 {[%clk 0:02:47]} 11. Bd2 {[%clk 0:02:12]}  Bd7 {[%clk 0:02:44]} 12. Qb4 {[%clk 0:02:12]}  c5 {[%clk 0:02:42]} 13. dxc6 {[%clk 0:02:13]}  Nxc6 {[%clk 0:02:41]} 14. Qa3 {[%clk 0:02:13]}  Bh3 {[%clk 0:02:35]} 15. Rac1 {[%clk 0:02:11]}  Bxg2 {[%clk 0:02:34]} 16. Kxg2 {[%clk 0:02:12]}  Qb7 {[%clk 0:02:26]} 17. Kg1 {[%clk 0:02:10]}  Rfc8 {[%clk 0:02:23]} 18. Rfd1 {[%clk 0:02:10]}  a5 {[%clk 0:02:06]} 19. b3 {[%clk 0:02:07]}  Nb4 {[%clk 0:02:05]} 20. Na4 {[%clk 0:02:05]}  Na6 {[%clk 0:01:58]} 21. Be3 {[%clk 0:02:01]}  Nc5 {[%clk 0:01:57]} 22. Nc3 {[%clk 0:02:01]}  Nfe4 {[%clk 0:01:52]} 23. Nd5 {[%clk 0:02:01]}  e6 {[%clk 0:01:50]} 24. Nf4 {[%clk 0:02:01]}  b5 {[%clk 0:01:49]} 25. cxb5 {[%clk 0:01:56]}  Qxb5 {[%clk 0:01:45]} 26. Bxc5 {[%clk 0:01:40]}  Rxc5 {[%clk 0:01:46]} 27. Rxc5 {[%clk 0:01:39]}  Qxc5 {[%clk 0:01:28]} 28. Qxc5 {[%clk 0:01:38]}  dxc5 {[%clk 0:01:29]} 29. Nd3 {[%clk 0:01:21]}  a4 {[%clk 0:01:28]} 30. Nd2 {[%clk 0:00:59]}  Nc3 {[%clk 0:01:27]} 31. Re1 {[%clk 0:00:59]}  a3 {[%clk 0:01:22]} 32. Nc1 {[%clk 0:00:55]}  Rd8 {[%clk 0:01:16]} 33. Nc4 {[%clk 0:00:54]}  Bh6 {[%clk 0:01:07]} 34. e3 {[%clk 0:00:53]}  Nb5 {[%clk 0:01:06]} 35. Kf1 {[%clk 0:00:50]}  Bg7 {[%clk 0:01:07]} 36. Ne2 {[%clk 0:00:47]}  Bb2 {[%clk 0:00:56]} 37. Rb1 {[%clk 0:00:45]}  Bc3 {[%clk 0:00:57]} 38. Rc1 {[%clk 0:00:39]}  Bb4 {[%clk 0:00:56]} 39. Kg2 {[%clk 0:00:31]}  g5 {[%clk 0:00:53]} 40. g4 {[%clk 0:00:30]}  h6 {[%clk 0:00:53]} 41. h3 {[%clk 0:00:31]}  Kg7 {[%clk 0:00:52]} 42. Kf3 {[%clk 0:00:31]}  Rd3 {[%clk 0:00:50]} 43. Ke4 {[%clk 0:00:28]}  Rd5 {[%clk 0:00:50]} 44. Kf3 {[%clk 0:00:25]}  f5 {[%clk 0:00:50]} 45. Kg2 {[%clk 0:00:25]}  Kf6 {[%clk 0:00:47]} 46. f3 {[%clk 0:00:23]}  Rd3 {[%clk 0:00:46]} 47. Kf2 {[%clk 0:00:23]}  h5 {[%clk 0:00:38]} 48. gxh5 {[%clk 0:00:20]}  Rd8 {[%clk 0:00:38]} 49. h4 {[%clk 0:00:17]}  gxh4 {[%clk 0:00:38]} 50. Rh1 {[%clk 0:00:17]}  Kg5 {[%clk 0:00:38]} 51. Rg1+ {[%clk 0:00:16]}  Kxh5 {[%clk 0:00:30]} 52. Nf4+ {[%clk 0:00:16]}  Kh6 {[%clk 0:00:31]} 53. Nxe6 {[%clk 0:00:16]}  Re8 {[%clk 0:00:27]} 54. Ng7 {[%clk 0:00:13]}  Rf8 {[%clk 0:00:24]} 55. Ne6 {[%clk 0:00:13]}  Rf6 {[%clk 0:00:24]} 56. Nf4 {[%clk 0:00:13]}  Nc3 {[%clk 0:00:21]} 57. Rh1 {[%clk 0:00:11]}  Ra6 {[%clk 0:00:19]} 58. Rxh4+ {[%clk 0:00:10]}  Kg7 {[%clk 0:00:20]} 59. Rh1 {[%clk 0:00:05]}  Nxa2 {[%clk 0:00:20]} 60. Ra1 {[%clk 0:00:05]}  Nc3 {[%clk 0:00:21]} 61. Nd3 {[%clk 0:00:06]}  a2 {[%clk 0:00:20]} 62. Ke1 {[%clk 0:00:03]}  Nd5+ {[%clk 0:00:16]} 63. Nxb4 {[%clk 0:00:03]}  Nxb4 {[%clk 0:00:13]} 64. Kd2 {[%clk 0:00:04]}  Rh6 {[%clk 0:00:14]} 65. e4 {[%clk 0:00:03]}  f4 {[%clk 0:00:14]} 66. e5 {[%clk 0:00:03]}  Rh2+ {[%clk 0:00:14]} 67. Kc1 {[%clk 0:00:02]}  Kf7 {[%clk 0:00:06]} 0-1


[Site "https://www.chess.com"]

[Event "Titled Tuesday Blitz December 13 Late 2022"]
[White "Kovacevic, Radmila"]
[Black "Arbunic Castro, Giovanna"]
[WhiteFideId "933171"]
[BlackFideId "3400549"]
[WhiteElo "2244"]
[BlackElo "1951"]
[Result "1-0"]
[Round "06"]
[TimeControl "180+1"]
[Date "2022.12.14"]
[WhiteClock "0:00:13"]
[BlackClock "0:00:08"]

1. e4 {[%clk 0:02:58]}  d5 {[%clk 0:02:55]} 2. exd5 {[%clk 0:02:57]}  Qxd5 {[%clk 0:02:55]} 3. Nf3 {[%clk 0:02:58]}  Bg4 {[%clk 0:02:53]} 4. Be2 {[%clk 0:02:58]}  e5 {[%clk 0:02:52]} 5. Nc3 {[%clk 0:02:56]}  Qe6 {[%clk 0:02:44]} 6. O-O {[%clk 0:02:48]}  Nf6 {[%clk 0:02:28]} 7. Nxe5 {[%clk 0:02:42]}  Bxe2 {[%clk 0:02:24]} 8. Qxe2 {[%clk 0:02:43]}  Be7 {[%clk 0:02:14]} 9. d4 {[%clk 0:02:21]}  O-O {[%clk 0:02:12]} 10. Rd1 {[%clk 0:02:12]}  Re8 {[%clk 0:02:11]} 11. d5 {[%clk 0:02:09]}  Qf5 {[%clk 0:02:09]} 12. Nc4 {[%clk 0:01:58]}  Bc5 {[%clk 0:01:57]} 13. Ne3 {[%clk 0:01:52]}  Qg6 {[%clk 0:01:37]} 14. Qb5 {[%clk 0:01:35]}  Bb6 {[%clk 0:01:28]} 15. Na4 {[%clk 0:01:25]}  c6 {[%clk 0:01:26]} 16. Qb3 {[%clk 0:01:19]}  Bxe3 {[%clk 0:01:20]} 17. Bxe3 {[%clk 0:01:07]}  b5 {[%clk 0:01:19]} 18. Nc3 {[%clk 0:01:01]}  Ng4 {[%clk 0:01:03]} 19. dxc6 {[%clk 0:00:56]}  Nxc6 {[%clk 0:01:02]} 20. Qxb5 {[%clk 0:00:44]}  Rab8 {[%clk 0:00:55]} 21. Qc4 {[%clk 0:00:26]}  Rxe3 {[%clk 0:00:39]} 22. fxe3 {[%clk 0:00:27]}  Nxe3 {[%clk 0:00:38]} 23. Qe2 {[%clk 0:00:26]}  Nxd1 {[%clk 0:00:35]} 24. Rxd1 {[%clk 0:00:27]}  h5 {[%clk 0:00:26]} 25. Nd5 {[%clk 0:00:24]}  Rxb2 {[%clk 0:00:18]} 26. Ne7+ {[%clk 0:00:17]}  Nxe7 {[%clk 0:00:17]} 27. Qxe7 {[%clk 0:00:15]}  Rxc2 {[%clk 0:00:17]} 28. Qd8+ {[%clk 0:00:13]}  Kh7 {[%clk 0:00:16]} 29. Qd5 {[%clk 0:00:13]}  h4 {[%clk 0:00:08]} 30. h3 {[%clk 0:00:13]} 1-0


[Site "https://www.chess.com"]

[Event "Titled Tuesday Blitz December 13 Late 2022"]
[White "Kupervaser, Erez"]
[Black "Szyszylo, Rafal"]
[WhiteFideId "2814587"]
[BlackFideId "1109626"]
[WhiteElo "2251"]
[BlackElo "1981"]
[Result "1/2-1/2"]
[Round "06"]
[TimeControl "180+1"]
[Date "2022.12.14"]
[WhiteClock "0:00:14"]
[BlackClock "0:00:18"]

1. e4 {[%clk 0:03:00]}  d6 {[%clk 0:02:57]} 2. d4 {[%clk 0:03:00]}  Nf6 {[%clk 0:02:56]} 3. Nc3 {[%clk 0:03:00]}  g6 {[%clk 0:02:56]} 4. f4 {[%clk 0:02:54]}  Bg7 {[%clk 0:02:55]} 5. Nf3 {[%clk 0:02:54]}  O-O {[%clk 0:02:55]} 6. Bd3 {[%clk 0:02:42]}  Na6 {[%clk 0:02:53]} 7. e5 {[%clk 0:02:36]}  dxe5 {[%clk 0:02:51]} 8. dxe5 {[%clk 0:02:35]}  Nd5 {[%clk 0:02:52]} 9. Nxd5 {[%clk 0:02:24]}  Qxd5 {[%clk 0:02:51]} 10. Bxa6 {[%clk 0:02:21]}  Qa5+ {[%clk 0:02:44]} 11. Bd2 {[%clk 0:02:08]}  Qxa6 {[%clk 0:02:44]} 12. Qe2 {[%clk 0:02:09]}  Qb6 {[%clk 0:02:38]} 13. O-O-O {[%clk 0:02:07]}  Be6 {[%clk 0:02:21]} 14. Kb1 {[%clk 0:02:03]}  Rfd8 {[%clk 0:01:57]} 15. Bc3 {[%clk 0:02:02]}  c6 {[%clk 0:01:55]} 16. Ng5 {[%clk 0:01:50]}  Bd5 {[%clk 0:01:54]} 17. h4 {[%clk 0:01:46]}  h6 {[%clk 0:01:46]} 18. Ne4 {[%clk 0:01:35]}  h5 {[%clk 0:01:22]} 19. f5 {[%clk 0:01:29]}  Qb5 {[%clk 0:00:55]} 20. Qxb5 {[%clk 0:01:20]}  cxb5 {[%clk 0:00:56]} 21. Ng5 {[%clk 0:00:54]}  Bxg2 {[%clk 0:00:55]} 22. Rhg1 {[%clk 0:00:54]}  Bd5 {[%clk 0:00:40]} 23. fxg6 {[%clk 0:00:51]}  fxg6 {[%clk 0:00:41]} 24. b3 {[%clk 0:00:49]}  Rac8 {[%clk 0:00:28]} 25. Bb4 {[%clk 0:00:41]}  e6 {[%clk 0:00:27]} 26. Bd6 {[%clk 0:00:37]}  Rc3 {[%clk 0:00:25]} 27. Rgf1 {[%clk 0:00:30]}  Rdc8 {[%clk 0:00:24]} 28. Rd2 {[%clk 0:00:26]}  Bh6 {[%clk 0:00:22]} 29. Rf6 {[%clk 0:00:18]}  Kg7 {[%clk 0:00:17]} 30. Rf7+ {[%clk 0:00:18]}  Kg8 {[%clk 0:00:18]} 31. Rf6 {[%clk 0:00:19]}  Kg7 {[%clk 0:00:18]} 32. Rf7+ {[%clk 0:00:14]}  Kg8 {[%clk 0:00:18]} 33. Rf6 {[%clk 0:00:14]} 1/2-1/2


[Site "https://www.chess.com"]

[Event "Titled Tuesday Blitz December 13 Late 2022"]
[White "Maksimovic, Bojan"]
[Black "Omelja, Artem"]
[WhiteFideId "14408120"]
[BlackFideId "14119846"]
[WhiteElo "2462"]
[BlackElo "2404"]
[Result "1-0"]
[Round "06"]
[TimeControl "180+1"]
[Date "2022.12.13"]
[WhiteClock "0:00:48"]
[BlackClock "0:00:03"]

1. e4 {[%clk 0:03:00]}  c6 {[%clk 0:02:54]} 2. d4 {[%clk 0:03:00]}  d5 {[%clk 0:02:54]} 3. Nc3 {[%clk 0:03:00]}  dxe4 {[%clk 0:02:53]} 4. Nxe4 {[%clk 0:03:01]}  Bf5 {[%clk 0:02:53]} 5. Nc5 {[%clk 0:03:01]}  e5 {[%clk 0:02:50]} 6. Nxb7 {[%clk 0:03:00]}  Qb6 {[%clk 0:02:50]} 7. Nc5 {[%clk 0:03:01]}  exd4 {[%clk 0:02:48]} 8. Na4 {[%clk 0:02:58]}  Qa5+ {[%clk 0:02:40]} 9. c3 {[%clk 0:02:57]}  dxc3 {[%clk 0:02:34]} 10. Nxc3 {[%clk 0:02:58]}  Nf6 {[%clk 0:02:32]} 11. Bc4 {[%clk 0:02:54]}  Bb4 {[%clk 0:02:19]} 12. Ne2 {[%clk 0:02:53]}  O-O {[%clk 0:02:17]} 13. O-O {[%clk 0:02:53]}  Nbd7 {[%clk 0:02:15]} 14. a3 {[%clk 0:02:51]}  Ne5 {[%clk 0:02:13]} 15. Ba2 {[%clk 0:02:29]}  Be7 {[%clk 0:02:10]} 16. Nd4 {[%clk 0:02:21]}  Rad8 {[%clk 0:02:00]} 17. Nxf5 {[%clk 0:02:19]}  Rxd1 {[%clk 0:01:57]} 18. Nxe7+ {[%clk 0:02:20]}  Kh8 {[%clk 0:01:57]} 19. Rxd1 {[%clk 0:02:19]}  g6 {[%clk 0:01:30]} 20. Bf4 {[%clk 0:02:07]}  Re8 {[%clk 0:01:29]} 21. Bxe5 {[%clk 0:01:53]}  Qxe5 {[%clk 0:01:30]} 22. Nxc6 {[%clk 0:01:53]}  Qc5 {[%clk 0:01:12]} 23. Nb4 {[%clk 0:01:51]}  Ng4 {[%clk 0:01:09]} 24. Nd3 {[%clk 0:01:51]}  Qc7 {[%clk 0:01:02]} 25. g3 {[%clk 0:01:50]}  Kg7 {[%clk 0:00:54]} 26. Bd5 {[%clk 0:01:46]}  h5 {[%clk 0:00:48]} 27. Bf3 {[%clk 0:01:45]}  Nf6 {[%clk 0:00:45]} 28. h4 {[%clk 0:01:43]}  Qa5 {[%clk 0:00:40]} 29. Kg2 {[%clk 0:01:42]}  g5 {[%clk 0:00:33]} 30. hxg5 {[%clk 0:01:40]}  Qxg5 {[%clk 0:00:34]} 31. Rh1 {[%clk 0:01:40]}  Rd8 {[%clk 0:00:30]} 32. Nf4 {[%clk 0:01:30]}  Rd2 {[%clk 0:00:29]} 33. Nxh5+ {[%clk 0:01:22]}  Nxh5 {[%clk 0:00:28]} 34. Rxh5 {[%clk 0:01:23]}  Qg6 {[%clk 0:00:28]} 35. Ne4 {[%clk 0:01:20]}  Rxf2+ {[%clk 0:00:09]} 36. Nxf2 {[%clk 0:01:21]}  Qc2 {[%clk 0:00:09]} 37. Rb5 {[%clk 0:01:18]}  a5 {[%clk 0:00:08]} 38. a4 {[%clk 0:01:14]}  f5 {[%clk 0:00:08]} 39. b3 {[%clk 0:01:12]}  f4 {[%clk 0:00:05]} 40. gxf4 {[%clk 0:01:12]}  Kf8 {[%clk 0:00:05]} 41. Re1 {[%clk 0:01:10]}  Kf7 {[%clk 0:00:04]} 42. Re4 {[%clk 0:01:08]}  Kf8 {[%clk 0:00:04]} 43. f5 {[%clk 0:01:07]}  Qb2 {[%clk 0:00:04]} 44. Rg4 {[%clk 0:01:06]}  Qc3 {[%clk 0:00:03]} 45. Be4 {[%clk 0:01:04]}  Kf7 {[%clk 0:00:03]} 46. Rb6 {[%clk 0:01:03]}  Ke7 {[%clk 0:00:03]} 47. f6+ {[%clk 0:00:58]}  Kd8 {[%clk 0:00:04]} 48. Rb7 {[%clk 0:00:55]}  Kc8 {[%clk 0:00:03]} 49. f7 {[%clk 0:00:50]}  Qf6 {[%clk 0:00:01]} 50. Rg8+ {[%clk 0:00:48]}  Qd8 {[%clk 0:00:02]} 51. Rxd8+ {[%clk 0:00:48]}  Kxd8 {[%clk 0:00:03]} 1-0


[Site "https://www.chess.com"]